bitfinex/quotes_BTCUSD_20250303
["timestamp","ask_amount","ask_price","bid_price","bid_amount"]
[1741027451589,0.227946,87740.0,87721.0,0.227995]
[1741027451875,0.0488,87749.0,87722.0,0.0009975]
[1741027452028,0.227965,87733.0,87711.0,0.3]
[1741027452242,0.0019948,87732.0,87694.0,0.00017]
[1741027452445,0.3488,87749.0,87694.0,0.00017]
[1741027452446,0.1,87738.0,87695.0,0.002]
[1741027452625,0.228063,87695.0,87694.0,0.00017]
[1741027452861,0.228063,87695.0,87694.0,0.00056582]
[1741027453632,0.54593844,87695.0,87687.0,8.2e-07]
[1741027453835,0.228081,87688.0,87687.0,0.00011975]
[1741027454047,0.24262185,87688.0,87687.0,7.5e-07]
[1741027454276,0.24262185,87688.0,87617.0,0.228265]
[1741027454277,0.228141,87665.0,87617.0,0.228265]
[1741027454478,0.228141,87665.0,87618.0,0.00100096]
[1741027454703,0.228141,87665.0,87610.0,0.00017]
[1741027454880,0.24602462,87665.0,87610.0,0.00017]
[1741027455118,0.24602462,87665.0,87617.0,0.228264]
[1741027455320,0.228195,87644.0,87610.0,0.00017]
[1741027455923,0.228195,87644.0,87616.0,0.3]
[1741027456126,0.0467,87660.0,87624.0,0.228245]
[1741027456288,0.00199679,87659.0,87629.0,0.228232]
[1741027456492,0.00399679,87665.0,87633.0,0.00134125]
[1741027456729,0.002,87665.0,87643.0,0.00995176]
[1741027457088,0.002,87665.0,87644.0,0.00100103]
[1741027457291,0.002,87665.0,87645.0,0.228193]
[1741027457491,0.228058,87697.0,87663.0,0.228144]
[1741027457734,0.01788091,87701.0,87643.0,0.00995176]
[1741027457735,0.00199606,87696.0,87645.0,0.228191]
[1741027457939,0.00199606,87696.0,87646.0,0.00100044]
[1741027458171,0.03019961,87695.0,87646.0,0.00100044]
[1741027458374,0.228174,87653.0,87643.0,0.00995176]
[1741027458577,0.3,87689.0,87645.0,0.001]
[1741027458780,0.228176,87652.0,87643.0,0.00995176]
[1741027458978,0.456167,87687.0,87643.0,0.00995176]
[1741027459186,0.228184,87649.0,87643.0,0.00995176]
[1741027459414,0.228195,87644.0,87643.0,0.00995176]
[1741027459592,0.3,87689.0,87643.0,0.01395176]
[1741027459794,0.00199676,87688.0,87643.0,0.01395176]
[1741027460032,0.228176,87652.0,87643.0,0.01395176]
[1741027460219,0.228179,87651.0,87643.0,0.01395176]
[1741027460393,0.48829516,87690.0,87643.0,0.01395176]
[1741027460394,0.228195,87644.0,87643.0,0.01395176]
[1741027460935,0.228195,87644.0,87643.0,0.00995176]
[1741027462467,0.229195,87644.0,87643.0,0.00995176]
[1741027462604,0.228195,87644.0,87643.0,0.00995176]
[1741027462807,0.2460816,87644.0,87643.0,0.00995176]
[1741027463022,0.228204,87641.0,87615.0,0.0001701]
[1741027463217,0.228204,87641.0,87580.0,0.47375431]
[1741027463218,0.228319,87597.0,87565.0,0.17948]
[1741027463420,0.3,87639.0,87606.0,0.00011924]
[1741027463622,0.228292,87607.0,87606.0,0.00011924]
[1741027463808,0.47375431,87650.0,87606.0,0.00011924]
[1741027464008,0.01789037,87607.0,87606.0,0.00011924]
[1741027464452,0.01454085,87647.0,87606.0,0.00011924]
[1741027464655,0.01789215,87607.0,87606.0,0.22841324]
[1741027464856,0.002,87639.0,87607.0,0.3]
[1741027465011,0.3980384,87690.0,87606.0,0.30011924]
[1741027465012,0.0822,87684.0,87621.0,0.3]
[1741027465219,0.01788761,87645.0,87644.0,0.528195]
[1741027465485,0.0457,87685.0,87645.0,0.3]
[1741027465647,0.0457,87685.0,87630.0,0.3980384]
[1741027465648,0.00199626,87684.0,87630.0,0.3980384]
[1741027465857,0.00199626,87684.0,87606.0,0.03443824]
[1741027465858,0.00199626,87684.0,87631.0,0.00100072]
[1741027466061,0.0476965,87685.0,87640.0,0.3980384]
[1741027466393,0.0476965,87685.0,87641.0,0.00100038]
[1741027466593,0.2757865,87685.0,87641.0,0.00100038]
[1741027466809,0.228091,87684.0,87641.0,0.00100038]
[1741027467001,0.00199623,87683.0,87641.0,0.00100038]
[1741027467347,0.228166,87656.0,87632.0,0.00100041]
[1741027467774,0.00199656,87655.0,87610.0,0.47469262]
[1741027467989,0.00199628,87684.0,87631.0,0.3]
[1741027468161,0.228193,87645.0,87610.0,0.47469262]
[1741027468370,0.228196,87644.0,87611.0,0.00100136]
[1741027468606,0.228184,87649.0,87611.0,0.00100136]
[1741027468809,0.00199687,87648.0,87632.0,0.002]
[1741027468958,0.00199683,87653.0,87632.0,0.002]
[1741027469158,0.3,87675.0,87632.0,0.002]
[1741027469363,0.00199694,87674.0,87632.0,0.002]
[1741027469753,0.22817,87654.0,87632.0,0.002]
[1741027469958,0.228152,87661.0,87614.0,0.00100141]
[1741027470160,0.001,87645.0,87631.0,0.31454085]
[1741027470364,0.001,87645.0,87632.0,0.00100067]
[1741027471110,0.228143,87665.0,87633.0,0.00100067]
[1741027471245,0.228146,87664.0,87633.0,0.00100067]
[1741027471448,0.001,87645.0,87620.0,0.01454085]
[1741027471739,0.22816,87658.0,87621.0,0.00100099]
[1741027471887,0.001,87645.0,87612.0,0.00100126]
[1741027472089,0.00199682,87644.0,87632.0,0.0001696]
[1741027472294,0.228224,87633.0,87632.0,0.0001696]
[1741027473105,0.06398566,87642.0,87632.0,0.0001696]
[1741027473306,0.01788566,87642.0,87632.0,0.0001696]
[1741027473718,0.22821,87639.0,87632.0,0.0001696]
[1741027473950,0.228224,87633.0,87632.0,0.0001696]
[1741027474153,0.22821,87639.0,87632.0,0.0001696]
[1741027474423,0.0456,87664.0,87632.0,0.0001696]
[1741027474633,0.01788569,87638.0,87632.0,0.0001696]
[1741027474858,0.22822,87635.0,87632.0,0.0001696]
[1741027475084,0.228224,87633.0,87632.0,0.0001696]
[1741027475973,0.228208,87640.0,87632.0,0.0001696]
[1741027476175,0.034336,87663.0,87632.0,0.0001696]
[1741027476374,0.0019969,87662.0,87632.0,0.0001696]
[1741027476698,0.228224,87633.0,87632.0,0.0001696]
[1741027476916,0.228217,87636.0,87632.0,0.0001696]
[1741027477148,0.228146,87663.0,87632.0,0.0001696]
[1741027477379,0.0019969,87662.0,87634.0,0.3]
[1741027477605,0.0796,87689.0,87635.0,0.00100037]
[1741027477606,0.342127,87687.0,87635.0,0.00100037]
[1741027477827,0.04910871,87686.0,87632.0,0.0001696]
[1741027478052,0.001,87633.0,87632.0,0.2283946]
[1741027478339,0.127,87689.0,87632.0,0.2283946]
[1741027478340,0.00011867,87662.0,87632.0,0.0001696]
[1741027478529,0.047,87661.0,87632.0,0.0001696]
[1741027478738,0.00199741,87660.0,87632.0,0.0001696]
[1741027479330,0.001,87633.0,87632.0,0.5293966]
[1741027480473,0.047,87685.0,87632.0,0.5293966]
[1741027480474,0.22814,87666.0,87637.0,0.3]
[1741027480611,0.047,87685.0,87632.0,0.0001696]
[1741027480854,0.004,87660.0,87632.0,0.0001696]
[1741027481035,0.228156,87660.0,87632.0,0.0001696]
[1741027481234,0.047,87685.0,87632.0,0.0001696]
[1741027481235,0.22825667,87666.0,87632.0,0.0001696]
[1741027481459,0.001,87633.0,87632.0,0.5293966]
[1741027481662,0.001,87633.0,87632.0,0.54293745]
[1741027481865,0.001,87633.0,87632.0,0.5283966]
[1741027482114,0.001,87633.0,87632.0,0.3011696]
[1741027482306,0.0019967,87651.0,87632.0,0.0001696]
[1741027482506,0.228215,87637.0,87632.0,0.0001696]
[1741027482703,0.22822,87635.0,87632.0,0.0001696]
[1741027482910,0.342211,87666.0,87632.0,0.0001696]
[1741027483107,0.001997,87665.0,87632.0,0.0001696]
[1741027483308,0.228199,87643.0,87632.0,0.0001696]
[1741027483470,0.228213,87638.0,87632.0,0.0001696]
[1741027483671,0.001,87633.0,87632.0,0.0001696]
[1741027483852,0.23022126,87633.0,87632.0,0.0001696]
[1741027484060,0.228224,87633.0,87632.0,0.0001696]
[1741027484492,0.3,87659.0,87632.0,0.0001696]
[1741027484710,0.00199693,87658.0,87632.0,0.0001696]
[1741027484915,0.228224,87633.0,87632.0,0.0001696]
[1741027485537,0.24814663,87633.0,87632.0,0.0001696]
[1741027485756,0.29654663,87633.0,87632.0,0.0001696]
[1741027486014,0.29654663,87633.0,87632.0,6e-07]
[1741027486592,0.59654663,87633.0,87632.0,6e-07]
[1741027487636,0.64543648,87633.0,87632.0,6e-07]
[1741027487974,0.59654663,87633.0,87632.0,6e-07]
[1741027488195,0.228314,87599.0,87566.0,0.2990006]
[1741027488445,0.228296,87606.0,87566.0,0.2990006]
[1741027488575,0.23029591,87605.0,87566.0,0.2990006]
[1741027488774,0.228293,87607.0,87566.0,0.2990006]
[1741027488977,0.3,87632.0,87570.0,0.39812922]
[1741027488978,0.228281,87612.0,87570.0,0.39812922]
[1741027489182,0.00199776,87611.0,87571.0,0.00100347]
[1741027489380,0.22833,87593.0,87571.0,0.00139853]
[1741027489585,0.228366,87579.0,87571.0,0.00039506]
[1741027489785,0.228383,87572.0,87571.0,0.00039506]
[1741027490828,0.228344,87588.0,87571.0,0.00039506]
[1741027491032,0.01984975,87572.0,87571.0,0.00039506]
[1741027491768,0.24823275,87572.0,87571.0,0.00039506]
[1741027492130,0.01984975,87572.0,87571.0,0.00039506]
[1741027492344,0.228344,87588.0,87571.0,0.00039506]
[1741027492345,0.22836,87581.0,87571.0,0.00039506]
[1741027492546,0.00199842,87580.0,87571.0,0.00039506]
[1741027492749,0.00199843,87583.0,87571.0,0.00039506]
[1741027492951,0.228383,87572.0,87571.0,0.00039506]
[1741027493300,0.228386,87571.0,87555.0,0.01223046]
[1741027493508,0.24626532,87579.0,87555.0,0.0123497]
[1741027493668,0.228388,87571.0,87555.0,0.0123497]
[1741027493843,0.228382,87573.0,87555.0,0.0123497]
[1741027494045,0.00199862,87572.0,87555.0,0.2407767]
[1741027494246,0.01789889,87568.0,87555.0,0.0123497]
[1741027495254,0.01789889,87568.0,87565.0,0.2284]
[1741027495454,0.01789889,87568.0,87555.0,0.0123497]
[1741027496088,0.00199876,87567.0,87555.0,0.0123497]
[1741027496294,0.00199876,87575.0,87555.0,0.0123497]
[1741027496500,0.228399,87566.0,87555.0,0.0123497]
[1741027496695,0.228405,87564.0,87555.0,0.0123497]
[1741027496898,0.00199876,87563.0,87555.0,0.0123497]
[1741027497259,0.228414,87561.0,87555.0,0.0123497]
[1741027497437,0.228425,87556.0,87555.0,0.0123497]
[1741027497781,0.3,87579.0,87555.0,0.0123497]
[1741027497975,0.228415,87560.0,87555.0,0.0123497]
[1741027498179,0.22842,87558.0,87555.0,0.0103497]
[1741027498384,0.228425,87556.0,87555.0,0.0103497]
[1741027499464,0.0458,87559.0,87555.0,0.0103497]
[1741027499673,0.228425,87556.0,87555.0,0.0103497]
[1741027500981,0.54819083,87556.0,87555.0,7e-07]
[1741027501207,0.31976583,87556.0,87544.0,9e-07]
[1741027501433,0.01454085,87545.0,87522.0,7e-05]
[1741027501661,0.24301285,87538.0,87537.0,0.0001186]
[1741027501892,0.00200003,87544.0,87537.0,0.0001186]
[1741027501893,0.39812922,87560.0,87537.0,0.0001186]
[1741027502115,1.10863353,87598.0,87537.0,0.0001186]
[1741027502116,0.01791023,87540.0,87537.0,0.0001186]
[1741027502379,0.228472,87538.0,87537.0,6e-07]
[1741027502571,0.228511,87523.0,87522.0,6e-07]
[1741027502771,0.574111,87523.0,87522.0,6e-07]
[1741027502979,0.228626,87479.0,87467.0,0.0001703]
[1741027503206,0.228626,87479.0,87478.0,3e-07]
[1741027503207,0.528626,87479.0,87478.0,3e-07]
[1741027503486,0.608426,87479.0,87478.0,3e-07]
[1741027503691,0.528657,87467.0,87466.0,9e-07]
[1741027504090,0.228657,87467.0,87466.0,9e-07]
[1741027504427,0.228628,87478.0,87466.0,9e-07]
[1741027504630,0.00200126,87477.0,87466.0,0.00039888]
[1741027504832,0.01792367,87479.0,87466.0,0.00039888]
[1741027505050,0.39812922,87500.0,87466.0,0.00039888]
[1741027505369,0.00200054,87499.0,87466.0,0.00039888]
[1741027505572,0.0479,87508.0,87466.0,0.00039888]
[1741027505769,0.0495,87529.0,87471.0,0.3]
[1741027505968,0.228553,87507.0,87486.0,0.228606]
[1741027506171,0.0495,87529.0,87470.0,0.39812922]
[1741027506422,0.0495,87529.0,87471.0,0.30100783]
[1741027506610,0.39812922,87520.0,87472.0,0.00100728]
[1741027506966,0.39812922,87510.0,87471.0,0.228645]
[1741027507195,0.00200058,87509.0,87488.0,0.228602]
[1741027507404,0.0020001,87528.0,87478.0,0.0001701]
[1741027507613,0.0495,87529.0,87483.0,0.3]
[1741027507825,0.0771,87554.0,87484.0,0.00100713]
[1741027507826,0.39812922,87540.0,87484.0,0.00100713]
[1741027508051,0.39812922,87520.0,87478.0,0.0001701]
[1741027508258,0.228626,87479.0,87478.0,0.0001701]
[1741027508476,0.39812922,87510.0,87478.0,0.0001701]
[1741027508477,0.0496,87510.0,87478.0,0.0001701]
[1741027508685,0.00200019,87529.0,87478.0,0.0001701]
[1741027508898,0.0496,87530.0,87482.0,0.01454085]
[1741027509114,0.0019996,87529.0,87483.0,0.00100715]
[1741027509318,0.0496,87530.0,87485.0,0.3]
[1741027509525,0.09338773,87550.0,87546.0,0.228451]
[1741027509753,0.09338773,87550.0,87514.0,0.1668]
[1741027509956,0.09338773,87550.0,87549.0,0.228443]
[1741027510830,0.09338773,87550.0,87531.0,0.3]
[1741027511083,0.00011854,87550.0,87523.0,0.0486]
[1741027511297,0.00011854,87550.0,87510.0,0.48132922]
[1741027511298,0.00011854,87550.0,87511.0,0.16616]
[1741027511504,0.00011854,87550.0,87512.0,0.00100632]
[1741027511713,0.00211772,87550.0,87501.0,0.00100687]
[1741027511917,0.228443,87549.0,87481.0,0.1]
[1741027512130,0.00211772,87550.0,87500.0,0.39812922]
[1741027512131,0.01790699,87541.0,87500.0,0.39812922]
[1741027512334,0.01790699,87541.0,87502.0,0.228566]
[1741027512578,0.00199936,87540.0,87499.0,0.228573]
[1741027512784,0.00199936,87540.0,87500.0,0.00100714]
[1741027512991,0.01790699,87541.0,87510.0,0.39812922]
[1741027513205,0.00011854,87550.0,87529.0,0.228494]
[1741027513415,0.00011854,87550.0,87549.0,0.228443]
[1741027514056,7.4e-07,87556.0,87555.0,0.228427]
[1741027514264,0.0458,87610.0,87562.0,0.456819]
[1741027514478,0.00199774,87609.0,87570.0,0.39812922]
[1741027514683,0.00039758,87610.0,87605.0,0.228295]
[1741027514910,0.228317,87598.0,87580.0,0.39812922]
[1741027515134,0.00039758,87610.0,87551.0,0.034349]
[1741027515135,0.00199785,87597.0,87551.0,0.034349]
[1741027515337,0.00039758,87610.0,87560.0,0.39812922]
[1741027515540,0.00039758,87610.0,87561.0,0.00100417]
[1741027515753,0.00039758,87610.0,87570.0,0.39812922]
[1741027515955,0.00039758,87610.0,87580.0,0.39812922]
[1741027516182,0.00039758,87610.0,87609.0,0.228287]
[1741027516399,0.00039758,87610.0,87609.0,0.227787]
[1741027516804,0.00039758,87610.0,87565.0,0.02231233]
[1741027517009,0.00039758,87610.0,87570.0,0.39812922]
[1741027517214,0.00039758,87610.0,87571.0,0.00100334]
[1741027517622,0.00039758,87610.0,87580.0,0.39812922]
[1741027517830,0.00039758,87610.0,87581.0,0.00100343]
[1741027518032,0.00039758,87610.0,87600.0,0.39812922]
[1741027518235,5.8e-07,87610.0,87609.0,0.528287]
[1741027518439,5.8e-07,87610.0,87609.0,0.695327]
[1741027519001,0.22690238,87657.0,87610.0,0.3]
[1741027519196,0.00099525,87656.0,87620.0,0.39812922]
[1741027519441,0.00011931,87657.0,87635.0,0.228218]
[1741027519958,0.00011931,87657.0,87637.0,0.228211]
[1741027520208,0.00011931,87657.0,87609.0,0.18935233]
[1741027520209,0.00011931,87657.0,87630.0,0.39812922]
[1741027520409,0.00011931,87657.0,87640.0,0.39812922]
[1741027520614,0.00011931,87657.0,87630.0,0.39812922]
[1741027520825,0.00011931,87657.0,87631.0,0.00159732]
[1741027521028,0.228189,87647.0,87610.0,0.39812922]
[1741027521242,0.01788305,87651.0,87630.0,0.39812922]
[1741027521443,0.01788305,87651.0,87650.0,0.22818]
[1741027521444,7e-08,87651.0,87650.0,0.22818]
[1741027521654,0.00011931,87657.0,87656.0,0.228164]
[1741027521867,0.00011931,87657.0,87654.0,0.228167]
[1741027522093,0.00011931,87657.0,87656.0,0.228164]
[1741027523765,0.0003394,87684.0,87653.0,0.228171]
[1741027523766,0.0003394,87684.0,87683.0,0.228094]
[1741027523974,4e-07,87684.0,87683.0,0.528094]
[1741027524180,9.1e-07,87687.0,87686.0,0.528086]
[1741027524791,1.1e-07,87698.0,87695.0,0.3]
[1741027524999,1.1e-07,87698.0,87697.0,0.528057]
[1741027525626,1.1e-07,87698.0,87697.0,0.228057]
[1741027526049,1.1e-07,87698.0,87670.0,0.56420922]
[1741027526290,0.00039705,87698.0,87671.0,0.00159632]
[1741027526496,0.00039705,87698.0,87649.0,0.16616]
[1741027526715,0.34308125,87697.0,87650.0,0.00159683]
[1741027526926,0.3,87696.0,87649.0,0.16616]
[1741027527137,0.01454085,87692.0,87630.0,0.39812922]
[1741027527341,0.00099525,87691.0,87650.0,0.39812922]
[1741027527547,0.00099525,87691.0,87626.0,0.1]
[1741027527548,0.00039705,87698.0,87677.0,0.228109]
[1741027527759,0.3,87686.0,87631.0,0.014541]
[1741027527980,0.228203,87642.0,87610.0,0.39812922]
[1741027528187,0.228185,87649.0,87628.0,0.228236]
[1741027528391,0.228185,87649.0,87599.0,0.0468]
[1741027528392,0.39812922,87690.0,87629.0,0.00159751]
[1741027528602,0.228124,87672.0,87621.0,0.00159729]
[1741027528813,0.00099525,87671.0,87621.0,0.00159729]
[1741027529014,0.00099525,87671.0,87590.0,0.39812922]
[1741027529015,0.228241,87627.0,87590.0,0.39812922]
[1741027529235,0.1218,87667.0,87601.0,0.3]
[1741027529448,0.1218,87667.0,87591.0,0.3015978]
[1741027529449,0.228164,87657.0,87610.0,0.39812922]
[1741027529661,0.1218,87667.0,87611.0,0.00159752]
[1741027529872,0.228161,87658.0,87611.0,0.00159752]
[1741027530080,0.349936,87667.0,87620.0,0.39812922]
[1741027530321,0.1218,87667.0,87621.0,0.00159723]
[1741027530533,0.228145,87664.0,87630.0,0.39812922]
[1741027530757,0.0806,87685.0,87621.0,0.30011911]
[1741027530758,0.00099525,87663.0,87621.0,0.30011911]
[1741027530954,0.0003398,87667.0,87631.0,0.3]
[1741027531160,0.0003398,87667.0,87632.0,0.00159696]
[1741027531594,0.0003398,87667.0,87623.0,0.00159732]
[1741027531785,0.31454085,87663.0,87621.0,0.00011911]
[1741027531997,0.0003398,87667.0,87621.0,0.00011911]
[1741027531998,0.00099525,87662.0,87621.0,0.00011911]
[1741027532208,0.228182,87650.0,87625.0,0.228244]
[1741027532414,0.228182,87650.0,87621.0,0.00011911]
[1741027532415,0.00099525,87649.0,87621.0,0.00011911]
[1741027532635,0.00099525,87652.0,87621.0,0.00011911]
[1741027532838,0.3079837,87635.0,87621.0,0.00011911]
[1741027533046,0.046,87643.0,87621.0,0.00011911]
[1741027533047,0.228253,87622.0,87621.0,0.00011911]
[1741027533253,0.3,87632.0,87621.0,0.00011911]
[1741027533457,0.00099525,87631.0,87621.0,0.00011911]
[1741027533664,0.228253,87622.0,87621.0,0.00011911]
[1741027533884,0.528253,87622.0,87621.0,0.00011911]
[1741027534102,0.39812922,87640.0,87621.0,0.00011911]
[1741027534103,0.39812922,87650.0,87621.0,0.00011911]
[1741027534314,0.0786,87651.0,87621.0,0.00011911]
[1741027534534,0.0003398,87667.0,87622.0,0.228253]
[1741027534535,0.01789237,87623.0,87622.0,0.228253]
[1741027534750,0.00133505,87667.0,87621.0,0.00011911]
[1741027534751,0.00133505,87667.0,87625.0,0.342366]
[1741027534990,0.0003398,87667.0,87626.0,0.00159721]
[1741027535214,0.00099525,87666.0,87626.0,0.00159721]
[1741027535439,0.0003398,87667.0,87653.0,0.228172]
[1741027535642,0.0003398,87667.0,87611.0,0.228281]
[1741027535845,0.0003398,87667.0,87621.0,0.3]
[1741027536054,0.0003398,87667.0,87630.0,0.39812922]
[1741027536284,0.0003398,87667.0,87621.0,0.3]
[1741027536285,0.0003398,87667.0,87666.0,0.228138]
[1741027536482,8e-07,87667.0,87666.0,0.528138]
[1741027536692,8e-07,87667.0,87666.0,0.22825711]
[1741027537069,8e-07,87667.0,87666.0,0.52825711]
[1741027537330,8e-07,87667.0,87666.0,0.62825711]
[1741027537554,0.0003406,87710.0,87697.0,0.228057]
[1741027538834,0.00039705,87698.0,87697.0,0.228057]
[1741027539050,0.00039705,87698.0,87676.0,0.1644]
[1741027539272,0.00039705,87698.0,87677.0,0.00159648]
[1741027539465,0.01454085,87696.0,87655.0,0.228165]
[1741027539672,0.00039705,87698.0,87670.0,0.39812922]
[1741027539929,0.00039705,87698.0,87697.0,0.228057]
[1741027540124,6.5e-07,87710.0,87697.0,0.692857]
[1741027540328,6.5e-07,87710.0,87709.0,0.528026]
[1741027540540,6.5e-07,87710.0,87709.0,0.65033833]
[1741027540964,6.5e-07,87710.0,87709.0,0.75033833]
[1741027541177,7e-05,87760.0,87731.0,0.227969]
[1741027541413,0.00045966,87732.0,87731.0,0.227969]
[1741027541870,6.6e-07,87732.0,87731.0,0.527969]
[1741027542917,6.6e-07,87732.0,87731.0,0.392009]
[1741027543572,6.6e-07,87732.0,87713.0,0.342022]
[1741027543573,6.6e-07,87732.0,87662.0,0.1]
[1741027543778,6.6e-07,87732.0,87651.0,0.047]
[1741027543779,0.00099591,87732.0,87663.0,0.00159649]
[1741027543960,0.3,87719.0,87663.0,0.00159649]
[1741027544203,0.3,87698.0,87641.0,0.00159683]
[1741027544409,0.3,87687.0,87641.0,0.00159683]
[1741027544610,0.01454085,87669.0,87626.0,0.00159714]
[1741027544809,0.00099525,87668.0,87626.0,0.00159714]
[1741027545015,0.01454085,87667.0,87633.0,0.228223]
[1741027545256,0.07939525,87666.0,87636.0,0.228216]
[1741027545464,0.0784,87682.0,87640.0,0.39812922]
[1741027545684,0.228083,87688.0,87641.0,0.00159687]
[1741027545890,0.228091,87685.0,87665.0,0.22814]
[1741027546064,0.01787871,87691.0,87671.0,0.228124]
[1741027546308,0.01787871,87691.0,87637.0,0.16384]
[1741027546309,0.1228,87699.0,87650.0,0.39812922]
[1741027546514,0.075,87716.0,87680.0,0.39812922]
[1741027546718,0.0178763,87711.0,87706.0,0.228033]
[1741027546924,0.00099525,87719.0,87694.0,0.228063]
[1741027547129,0.00099525,87719.0,87681.0,0.16452]
[1741027547335,0.075,87735.0,87690.0,0.39812922]
[1741027547336,0.00133505,87732.0,87690.0,0.39812922]
[1741027547538,0.0003398,87732.0,87691.0,0.30159598]
[1741027547717,0.0003398,87732.0,87724.0,0.227985]
[1741027547950,0.0003398,87732.0,87722.0,0.227992]
[1741027548152,0.0003398,87732.0,87700.0,0.39812922]
[1741027548359,0.0003398,87732.0,87701.0,0.00159569]
[1741027548556,0.0003398,87732.0,87710.0,0.39812922]
[1741027548829,0.0003398,87732.0,87731.0,0.227969]
[1741027549104,0.0003398,87732.0,87701.0,0.4]
[1741027549239,0.0003398,87732.0,87731.0,0.227969]
[1741027549448,0.0003398,87732.0,87730.0,0.227971]
[1741027549629,0.0003398,87732.0,87731.0,0.22956457]
[1741027549834,0.0003398,87732.0,87731.0,0.227969]
[1741027550897,0.0003406,87746.0,87731.0,0.227969]
[1741027550898,4e-07,87746.0,87745.0,0.527933]
[1741027551275,4e-07,87746.0,87743.0,0.327936]
[1741027551276,1e-06,87755.0,87754.0,0.527909]
[1741027553134,7e-05,87760.0,87754.0,0.527909]
[1741027553135,1e-06,87760.0,87759.0,0.627896]
[1741027553290,3e-07,87776.0,87775.0,0.527855]
[1741027553468,0.00011931,87776.0,87775.0,0.689855]
[1741027554167,0.0003398,87820.0,87782.0,0.527837]
[1741027554168,7.1e-07,87783.0,87782.0,0.527837]
[1741027555297,7.1e-07,87783.0,87750.0,0.02231233]
[1741027555497,7.1e-07,87783.0,87766.0,0.16127901]
[1741027555703,7.1e-07,87783.0,87782.0,0.227837]
[1741027556325,7.1e-07,87783.0,87768.0,0.227872]
[1741027556580,7.1e-07,87783.0,87782.0,0.227837]
[1741027557566,7.1e-07,87783.0,87782.0,0.527837]
[1741027557769,4.1e-07,87787.0,87786.0,0.527826]
[1741027558369,2.1e-07,87789.0,87788.0,0.527821]
[1741027559245,2.1e-07,87789.0,87788.0,0.65916962]
[1741027559450,2.1e-07,87789.0,87788.0,0.79224168]
[1741027559625,2.1e-07,87789.0,87788.0,0.76089306]
[1741027559856,2.1e-07,87789.0,87788.0,0.727821]
[1741027560252,2.1e-07,87789.0,87788.0,0.527821]
[1741027560899,0.0003402,87810.0,87788.0,0.627821]
[1741027561015,2e-07,87810.0,87809.0,0.527767]
[1741027561219,0.0001697,87843.0,87842.0,0.227681]
[1741027561622,0.1,87822.0,87762.0,0.02231233]
[1741027561821,0.1,87822.0,87733.0,0.1463]
[1741027561822,0.1244,87820.0,87763.0,0.00159489]
[1741027562116,0.00099525,87819.0,87763.0,0.00159489]
[1741027562294,0.1247968,87820.0,87812.0,0.227757]
[1741027562431,0.1247968,87820.0,87770.0,0.39812922]
[1741027562636,0.01785323,87806.0,87770.0,0.39812922]
[1741027562841,0.01785323,87806.0,87805.0,0.227777]
[1741027563037,0.0003968,87820.0,87819.0,0.227741]
[1741027563614,8e-07,87820.0,87819.0,0.527741]
[1741027563809,0.0001697,87843.0,87842.0,0.227681]
[1741027563947,0.0001697,87843.0,87842.0,0.386841]
[1741027564221,0.0001697,87843.0,87842.0,0.686841]
[1741027564415,6.8e-07,87843.0,87842.0,0.686841]
[1741027565003,6.8e-07,87843.0,87842.0,0.886841]
[1741027565201,6.8e-07,87843.0,87842.0,0.786841]
[1741027565392,6.8e-07,87843.0,87842.0,0.686841]
[1741027565692,6.8e-07,87843.0,87842.0,0.70915333]
[1741027565904,6.8e-07,87843.0,87842.0,0.686841]
[1741027566249,7.385e-05,87871.0,87850.0,0.227659]
[1741027566449,0.00019272,87871.0,87852.0,0.227653]
[1741027566678,0.01454085,87869.0,87840.0,0.3]
[1741027566881,0.01454085,87869.0,87817.0,0.1]
[1741027566882,0.0761,87867.0,87800.0,0.39812922]
[1741027567039,0.01454085,87863.0,87830.0,0.39812922]
[1741027567242,0.00019272,87871.0,87850.0,0.39812922]
[1741027567446,0.00019272,87871.0,87870.0,0.227608]
[1741027567840,0.00019272,87871.0,87870.0,0.527608]
[1741027568730,0.00019272,87871.0,87870.0,0.227608]
[1741027568936,7.4e-07,87879.0,87875.0,0.3]
[1741027569085,0.0001695,87931.0,87870.0,0.227608]
[1741027569086,0.0817,87935.0,87906.0,0.00798641]
[1741027569285,2.84101,87997.0,87876.0,0.00159258]
[1741027569286,0.00011885,87963.0,87921.0,0.3]
[1741027569505,0.0488,87967.0,87941.0,0.00798641]
[1741027569735,0.0488,87967.0,87950.0,0.39812922]
[1741027569936,0.0488,87967.0,87966.0,0.22736]
[1741027570141,0.0499,87988.0,87966.0,0.22736]
[1741027570342,0.0499,87988.0,87968.0,0.00798641]
[1741027570541,0.01409855,87969.0,87968.0,0.04156323]
[1741027570811,0.01409855,87969.0,87968.0,0.37530135]
[1741027571004,0.0458,88015.0,87990.0,0.00798641]
[1741027571211,0.09350671,87991.0,87990.0,0.46626641]
[1741027571527,0.09350671,87991.0,87990.0,0.30798641]
[1741027572151,0.00011898,87991.0,87990.0,0.30798641]
[1741027573039,0.00011898,87991.0,87987.0,0.00798641]
[1741027573240,0.00011898,87991.0,87990.0,0.00798641]
[1741027573392,0.00011898,87991.0,87990.0,0.00957705]
[1741027573595,0.00011898,87991.0,87983.0,0.15824]
[1741027573794,0.00011898,87991.0,87960.0,0.55696922]
[1741027573995,0.227301,87989.0,87964.0,0.00798641]
[1741027574194,0.08121898,87991.0,87961.0,0.00159131]
[1741027574195,0.227333,87977.0,87961.0,0.00159131]
[1741027574419,0.01454085,87990.0,87952.0,0.00798641]
[1741027574617,0.227334,87977.0,87943.0,0.00159154]
[1741027574814,0.227336,87976.0,87946.0,0.00798641]
[1741027575074,0.01454085,87984.0,87930.0,0.00798641]
[1741027575215,0.01454085,87984.0,87912.0,0.02231233]
[1741027575216,0.09201359,87970.0,87912.0,0.00798641]
[1741027575421,0.0474,87967.0,87913.0,0.00159212]
[1741027575644,0.0474,87967.0,87922.0,0.00798641]
[1741027575860,0.227386,87957.0,87922.0,0.00798641]
[1741027576062,0.27476,87967.0,87912.0,0.00159208]
[1741027576063,0.0474,87967.0,87952.0,0.00798641]
[1741027576263,0.0474,87967.0,87953.0,0.00159154]
[1741027576419,0.0474,87967.0,87951.0,0.00798641]
[1741027576620,0.0474,87967.0,87941.0,0.3]
[1741027576621,0.01454085,87966.0,87941.0,0.3]
[1741027576821,0.01454085,87966.0,87903.0,0.16638641]
[1741027576822,0.3,87958.0,87903.0,0.16638641]
[1741027577076,0.09201359,87962.0,87912.0,0.00798641]